fUST/lending_fUST_20251030
["ID","MTS","AMOUNT","RATE_DAILY","PERIOD"]
[392694355,1761827267449,10000.01,0.00018,2]
[392694356,1761827267474,949.77135604,0.00018,2]
[392694358,1761827308284,1000000.02175012,0.00035461,120]
[392694359,1761827309419,9050.23864396,0.00025,15]
[392694360,1761827309442,10000.01,0.00025,15]
[392694361,1761827309463,9763.25664928,0.00025,15]
[392694369,1761827320968,236.75335072,0.000235,2]
[392694370,1761827320991,763.24664928,0.000235,2]
[392694371,1761827322538,2252.03403696,0.00024142,2]
[392694374,1761827374127,-1084.0,0.00026386,2]
[392694375,1761827374148,-3672.26770628,0.00026387,2]
[392694442,1761827435527,-183.28153773,0.00025796,2]
[392694443,1761827435537,-4821.60938254,0.00026387,2]
[392694444,1761827435549,-27334.0,0.00026387,2]
[392694445,1761827435585,-1691.59999,0.00026387,2]
[392694446,1761827435644,-3180.64767502,0.00026387,2]
[392694447,1761827435654,-300.0,0.00026914,30]
[392694448,1761827435663,-300.0,0.00026914,30]
[392694449,1761827435672,-300.0,0.00026914,30]
[392694450,1761827435681,-300.0,0.00026914,30]
[392694451,1761827435691,-300.0,0.00026914,30]
[392694452,1761827435700,-300.0,0.00026914,30]
[392694453,1761827435709,-300.0,0.00026914,30]
[392694454,1761827435719,-300.0,0.00026914,30]
[392694455,1761827435728,-300.0,0.00026914,30]
[392694456,1761827435741,-300.0,0.00026914,30]
[392694457,1761827435751,-300.0,0.00026914,30]
[392694458,1761827435760,-300.0,0.00026914,30]
[392694459,1761827435769,-300.0,0.00026914,30]
[392694460,1761827435778,-300.0,0.00026914,30]
[392694461,1761827435788,-300.0,0.00026914,30]
[392694462,1761827435797,-600.0,0.00026914,30]
[392694463,1761827435807,-482.71094556,0.00027041,2]
[392694464,1761827435816,-216.27221452,0.00027796,2]
[392694465,1761827435825,-386.1479461,0.00028111,2]
[392694466,1761827435834,-184.7383274,0.00028801,2]
[392694467,1761827435843,-1973.83218001,0.00029543,2]
[392694468,1761827435852,-720.0,0.00029605,30]
[392694469,1761827435861,-249.26289131,0.00029796,2]
[392694470,1761827435871,-1973.83218001,0.00031458,2]
[392694471,1761827435879,-282.2535681,0.00031796,2]
[392694472,1761827435889,-864.0,0.00032566,30]
[392694473,1761827435898,-1973.83218001,0.00033373,3]
[392694474,1761827435907,-315.24424489,0.00033796,120]
[392694475,1761827435916,-4287.45174571,0.00033899,2]
[392694476,1761827435925,-1973.83218001,0.00035289,3]
[392694477,1761827435935,-160.95098064,0.0003546,2]
[392694478,1761827435944,-200.0,0.00035461,30]
[392694479,1761827435953,-4838.56548958,0.00035461,2]
[392694480,1761827435963,-348.23492168,0.00035796,120]
[392694481,1761827435973,-1000.0,0.00035822,30]
[392694482,1761827435984,-1661.54180867,0.00036388,2]
[392694483,1761827435993,-1973.83218001,0.00037204,4]
[392694484,1761827436003,-381.22559847,0.00037796,120]
[392694485,1761827436013,-257.04395178,0.00037999,15]
[392694486,1761827436022,-25038.0,0.00038,30]
[392694487,1761827436032,-151.0,0.00038377,2]
[392694488,1761827436044,-151.0,0.00038377,2]
[392694489,1761827436061,-151.0,0.00038377,2]
[392694490,1761827436070,-151.0,0.00038377,2]
[392694491,1761827436079,-151.0,0.00038377,2]
[392694492,1761827436090,-151.0,0.00038377,2]
[392694493,1761827436098,-151.0,0.00038377,2]
[392694494,1761827436107,-151.0,0.00038377,2]
[392694495,1761827436118,-151.0,0.00038377,2]
[392694496,1761827436128,-151.0,0.00038377,2]
[392694497,1761827436137,-151.0,0.00038377,2]
[392694498,1761827436146,-151.0,0.00038377,2]
[392694499,1761827436155,-151.0,0.00038377,2]
[392694500,1761827436165,-151.0,0.00038377,2]
[392694501,1761827436174,-151.0,0.00038377,2]
[392694502,1761827436183,-151.0,0.00038377,2]
[392694503,1761827436193,-151.0,0.00038377,2]
[392694504,1761827436202,-151.0,0.00038377,2]
[392694505,1761827436212,-151.0,0.00038377,2]
[392694506,1761827436221,-151.0,0.00038377,2]
[392694507,1761827436230,-206.22,0.0003839,10]
[392694508,1761827436243,-171.85,0.0003839,10]
[392694509,1761827436252,-859.3,0.0003839,10]
[392694510,1761827436265,-148185.96799011,0.000384,2]
[392694511,1761827436277,-2673.61870124,0.000384,2]
[392694512,1761827436289,-1776.27,0.000384,14]
[392694513,1761827436301,-503.0,0.00038461,120]
[392694514,1761827436313,-369.9,0.00038495,120]
[392694515,1761827436324,-159.959766,0.00038505,2]
[392694516,1761827436335,-150.0,0.00038562,2]
[392694517,1761827436345,-369.9,0.00038595,120]
[392694518,1761827436355,-369.9,0.00038695,120]
[392694519,1761827436367,-5045.86,0.000387,21]
[392694520,1761827436378,-369.9,0.00038795,120]
[392694521,1761827436389,-500.0,0.00038795,60]
[392694522,1761827436399,-500.0,0.0003885,60]
[392694523,1761827436410,-1000.0,0.00038889,15]
[392694524,1761827436421,-369.9,0.00038895,120]
[392694525,1761827436433,-157.54191716,0.000389,14]
[392694526,1761827436444,-500.0,0.00038905,60]
[392694527,1761827436456,-490.78188888,0.00038959,60]
[392694528,1761827436467,-500.0,0.00038973,5]
[392694529,1761827436478,-369.9,0.00038995,120]
[392694530,1761827436492,-367.64702636,0.00039,120]
[392694531,1761827436503,-236458.32895163,0.00039,120]
[392694532,1761827436513,-157.99634,0.00039,30]
[392694533,1761827436525,-162.995,0.00039,120]
[392694534,1761827436536,-175.260625,0.00039,120]
[392694535,1761827436547,-369.9,0.00039095,120]
[392694536,1761827436558,-1973.83218001,0.00039119,4]
[392694537,1761827436569,-369.9,0.00039195,120]
[392694538,1761827436580,-230.1193166,0.00039233,30]
[392694539,1761827436591,-365.0,0.00039233,40]
[392694540,1761827436601,-28678.07,0.00039295,14]
[392694541,1761827436612,-369.9,0.00039295,120]
[392694542,1761827436623,-369.9,0.00039395,120]
[392694543,1761827436634,-1000.0,0.00039405,90]
[392694544,1761827436646,-244.0,0.00039405,90]
[392694545,1761827436657,-369.9,0.00039495,120]
[392694546,1761827436668,-675.18,0.000395,14]
[392694547,1761827436679,-210.67526182,0.00039521,5]
[392694548,1761827436691,-369.9,0.00039595,120]
[392694549,1761827436702,-285.047127,0.00039654,2]
[392694550,1761827436712,-369.9,0.00039695,120]
[392694551,1761827436723,-158.0,0.000397,120]
[392694552,1761827436736,-369.9,0.00039795,120]
[392694553,1761827436745,-414.21627526,0.00039796,120]
[392694554,1761827436755,-904.67266948,0.0003989,120]
[392694555,1761827436766,-300.0,0.0003989,50]
[392694556,1761827436778,-955.8,0.00039895,14]
[392694557,1761827436788,-369.9,0.00039895,120]
[392694558,1761827436800,-369.9,0.00039995,120]
[392694559,1761827436810,-500.0,0.0004,2]
[392694560,1761827436822,-40123.66994907,0.0004,2]
[392694561,1761827436833,-200.0,0.0004,3]
[392694562,1761827436844,-256.46,0.0004,3]
[392694563,1761827436855,-1982.36,0.0004,7]
[392694564,1761827436868,-15463.74,0.0004,2]
[392694565,1761827436879,-990.96616805,0.0004,120]
[392694566,1761827436890,-500.0,0.0004,120]
[392694567,1761827436902,-341.40420231,0.0004,30]
[392694568,1761827436912,-204.84540026,0.0004,60]
[392694569,1761827436923,-323.53113181,0.0004,90]
[392694570,1761827436934,-2498.85716479,0.0004,120]
[392694571,1761827436945,-369.9,0.00040095,120]
[392694572,1761827436955,-978.09,0.00040195,14]
[392694573,1761827436965,-369.9,0.00040195,120]
[392694574,1761827436975,-369.9,0.00040295,120]
[392694575,1761827436985,-170.102837,0.00040304,2]
[392694576,1761827436995,-369.9,0.00040395,120]
[392694577,1761827437005,-1605.15,0.00040495,14]
[392694578,1761827437015,-369.9,0.00040495,120]
[392694579,1761827437026,-369.9,0.00040595,120]
[392694580,1761827437036,-1776.27,0.000406,14]
[392694581,1761827437051,-369.9,0.00040695,120]
[392694582,1761827437062,-1773.08,0.00040795,14]
[392694583,1761827437075,-369.9,0.00040795,120]
[392694584,1761827437087,-369.9,0.00040895,120]
[392694585,1761827437098,-369.9,0.00040995,120]
[392694586,1761827437109,-225.83040967,0.00040999,120]
[392694587,1761827437119,-1973.83218001,0.00041035,5]
[392694588,1761827437129,-1146.02,0.00041095,14]
[392694589,1761827437139,-369.9,0.00041095,120]
[392694590,1761827437150,-347.27,0.00041096,120]
[392694591,1761827437162,-202.7,0.00041096,120]
[392694592,1761827437173,-207.80373997,0.00041096,2]
[392694593,1761827437185,-369.9,0.00041195,120]
[392694594,1761827437196,-369.9,0.00041295,120]
[392694595,1761827437207,-1195.59,0.00041395,14]
[392694596,1761827437218,-369.9,0.00041395,120]
[392694597,1761827437228,-369.9,0.00041495,120]
[392694598,1761827437241,-675.18,0.000415,14]
[392694599,1761827437252,-200.0,0.00041564,120]
[392694600,1761827437262,-369.9,0.00041595,120]
[392694601,1761827437272,-2308.64,0.00041695,14]
[392694602,1761827437282,-369.9,0.00041695,120]
[392694603,1761827437292,-369.9,0.00041795,120]
[392694604,1761827437302,-447.20695205,0.00041796,120]
[392694605,1761827437312,-369.9,0.00041895,120]
[392694606,1761827437322,-369.9,0.00041995,120]
[392694608,1761827437332,-380222.86716429,0.00042,10]
[392694610,1761827437350,-7296.15631805,0.00042,10]
[392694611,1761827437362,-755.91354606,0.00042,10]
[392694634,1761827437741,-940.8800004,0.00042,10]
[392694636,1761827437754,-65701.37816888,0.00042,10]
[392694637,1761827437767,-269860.60113385,0.00042,10]
[392694638,1761827437778,-11605.06092967,0.00042,10]
[392694639,1761827437790,-11629.92558001,0.00042,10]
[392694640,1761827437802,-9758.56956691,0.00042,10]
[392694641,1761827437813,-1813.7756934,0.00042,10]
[392694642,1761827437826,-18512.44410554,0.00042,10]
[392694643,1761827438358,-56083.69808899,0.00042,10]
[392694693,1761827440187,-743.42,0.00042,10]
[392694773,1761827442960,-76200.0,0.00042,10]
[392694775,1761827442972,-3850.00000002,0.00042,10]
[392694803,1761827445917,-150.25,0.00032921,60]
[392694804,1761827445926,-150.25,0.00033021,60]
[392694805,1761827445936,-150.25,0.00033121,60]
[392694806,1761827445946,-150.25,0.00033221,60]
[392694807,1761827445956,-150.27,0.00033321,60]
[392694808,1761827445965,-522025.30970393,0.00042,10]
[392694809,1761827445975,-158.0,0.00042,120]
[392694810,1761827445985,-156.13442747,0.00042,120]
[392694811,1761827445996,-150.0,0.00042,120]
[392694812,1761827446005,-2309.15,0.00042021,14]
[392694813,1761827446015,-150.0,0.00042067,2]
[392694814,1761827446025,-370.07158698,0.00042095,120]
[392694815,1761827446034,-926.59,0.000424,14]
[392694816,1761827446044,-1790.14958542,0.000424,120]
[392694817,1761827446058,-3604.99,0.000427,14]
[392694818,1761827446068,-1880.56003736,0.000427,120]
[392694819,1761827446078,-744.87980942,0.00042833,21]
[392694820,1761827446090,-1973.83218001,0.0004295,5]
[392694821,1761827446099,-285.92429509,0.00043,120]
[392694822,1761827446108,-150.0,0.00043,120]
[392694823,1761827446117,-3830.62,0.00043,14]
[392694824,1761827446127,-1982.36,0.000433,14]
[392694825,1761827446137,-1000.0,0.00043345,90]
[392694826,1761827446147,-492.0,0.00043345,90]
[392694827,1761827446158,-3306.06589498,0.000435,120]
[392694828,1761827446177,-3723.2,0.000435,14]
[392694829,1761827446188,-1776.27,0.000435,14]
[392694830,1761827446197,-1317.61429552,0.00043562,120]
[392694831,1761827446207,-3323.2,0.000437,14]
[392694832,1761827446216,-480.19762884,0.00043796,120]
[392694833,1761827446226,-1000.0,0.000438,90]
[392694834,1761827446235,-150.0,0.00044,120]
[392694835,1761827446246,-8000.0,0.000442,120]
[392694836,1761827446256,-158.0,0.000443,120]
[392694837,1761827446266,-8612.37,0.000444,14]
[392694838,1761827446275,-8612.37,0.000444,14]
[392694839,1761827446285,-516.50771833,0.000447,120]
[392694840,1761827446294,-200.0,0.00044705,120]
[392694841,1761827446303,-1088.18644292,0.000448,120]
[392694842,1761827446312,-1973.83218001,0.00044865,6]
[392694843,1761827446322,-1115.97538957,0.000449,120]
[392694844,1761827446331,-2484.15,0.000449,30]
[392694845,1761827446340,-675.18,0.000449,14]
[392694846,1761827446350,-871.7812997,0.00045,20]
[392694847,1761827446359,-620.92255846,0.00045,2]
[392694848,1761827446370,-544.93926435,0.00045,120]
[392694849,1761827446379,-238.15558777,0.00045,120]
[392694850,1761827446388,-700.31868489,0.00045,120]
[392694851,1761827446398,-150.0,0.00045,120]
[392694852,1761827446407,-2498.85716479,0.00045,120]
[392694853,1761827446416,-32123.9928359,0.00045044,14]
[392694854,1761827446976,-16810.642158,0.00045044,14]
[392694857,1761827703141,3992.07671442,0.00025205,2]
[392694861,1761827995031,2992.65259934,0.00025205,2]
[392694862,1761827995051,7007.34740066,0.00025205,2]
[392694863,1761828007280,2992.66259934,0.00025205,2]
[392694864,1761828007304,7007.33740066,0.00025205,2]
[392694865,1761828014961,1868.4224599,0.00025205,2]
[392694866,1761828023483,1124.25013944,0.00025205,2]
[392694867,1761828032290,4542.86865818,0.00025205,2]
[392694868,1761828038101,-249.46990405,0.00025205,2]
[392694869,1761828041370,-196.00401519,0.00025205,2]
[392694870,1761828043894,5457.14134182,0.00025205,2]
[392694871,1761828043915,4542.85865818,0.00025205,2]
[392694872,1761828045272,-199.68079118,0.00025205,2]
[392694873,1761828047422,-450.89111063,0.00025205,2]
[392694874,1761828050929,-315.01609457,0.00025205,2]
[392694875,1761828065288,300.0,0.00025204,2]
[392694876,1761828085344,300.0,0.000252,2]
[392694877,1761828122604,300.0,0.00025204,2]
[392694878,1761828160307,1200.0,0.00025204,2]
[392694880,1761828214687,3000.0,0.0003,120]
[392694881,1761828215379,3000.0,0.0003,120]
[392694882,1761828215773,3000.0,0.0003,120]
[392694883,1761828216151,3000.0,0.0003,120]
[392694884,1761828216462,3000.0,0.0003,120]
[392694885,1761828216953,3000.0,0.0003,120]
[392694886,1761828217176,3000.0,0.0003,120]
[392694887,1761828217569,3000.0,0.0003,120]
[392694888,1761828217905,3000.0,0.0003,120]
[392694889,1761828218281,3000.0,0.0003,120]
[392694890,1761828218621,3000.0,0.0003,120]
[392694891,1761828218958,3000.0,0.0003,120]
[392694892,1761828219415,3000.0,0.0003,120]
[392694893,1761828219996,3000.0,0.0003,120]
[392694894,1761828220332,3000.0,0.0003,120]
[392694895,1761828220642,3000.0,0.0003,120]
[392694896,1761828220999,3000.0,0.0003,120]
[392694897,1761828221333,3000.0,0.0003,120]
[392694898,1761828221720,3000.0,0.0003,120]
[392694899,1761828222042,3000.0,0.0003,120]
[392694900,1761828223848,3357.15134182,0.00025205,2]
[392694901,1761828223875,1642.84865818,0.00025205,2]
[392694902,1761828226827,3000.0,0.0003,120]
[392694903,1761828227189,3000.0,0.0003,120]
[392694904,1761828227503,3000.0,0.0003,120]
[392694905,1761828227816,3000.0,0.0003,120]
[392694906,1761828228123,3000.0,0.0003,120]
[392694907,1761828228449,3000.0,0.0003,120]
[392694908,1761828228761,3000.0,0.0003,120]
[392694909,1761828229218,3000.0,0.0003,120]
[392694910,1761828230300,3000.0,0.0003,120]
[392694911,1761828230673,3000.0,0.0003,120]
[392694912,1761828231839,3000.0,0.0003,120]
[392694913,1761828232283,3000.0,0.0003,120]
[392694915,1761828247227,5000.0,0.00025205,2]
[392694919,1761828265308,5000.0,0.0003,120]
[392694920,1761828266079,5000.0,0.0003,120]
[392694921,1761828266478,5000.0,0.0003,120]
[392694922,1761828267159,5000.0,0.0003,120]
[392694923,1761828267234,5000.0,0.0003,120]
[392694924,1761828267577,5000.0,0.0003,120]
[392694925,1761828267913,5000.0,0.0003,120]
[392694926,1761828268291,5000.0,0.0003,120]
[392694927,1761828275021,3357.16134182,0.00025205,2]
[392694928,1761828275043,1642.83865818,0.00025205,2]
[392694931,1761828298526,5000.0,0.00025205,2]
[392694932,1761828302509,190.0,0.00025204,2]
[392694933,1761828304839,300.0,0.00025204,2]
[392694934,1761828306529,1248.49439306,0.00025205,2]
[392694935,1761828309108,418.41718489,0.00025105,2]
[392694936,1761828309304,300.0,0.00025204,2]
[392694937,1761828314357,900.25976387,0.00025204,2]
[392694938,1761828314382,299.74023613,0.00025204,2]
[392694939,1761828321941,5000.0,0.00025205,2]
[392694940,1761828342132,-8495.09736773,0.00025205,2]
[392694941,1761828344679,4700.26976387,0.00025205,2]
[392694942,1761828344701,299.73023613,0.00025205,2]
[392694943,1761828351409,6048.0,0.00025205,2]
[392694944,1761828355404,500.00640376,0.00025204,2]
[392694945,1761828367912,3152.27336011,0.00025205,2]
[392694946,1761828367936,187.41259533,0.00025205,2]
[392694947,1761828391596,2000.0,0.0003,120]
[392694948,1761828392544,2000.0,0.0003,120]
[392694949,1761828393527,2000.0,0.0003,120]
[392694950,1761828393719,2000.0,0.0003,120]
[392694951,1761828399926,850.92,0.0003,120]
[392694952,1761828436113,-285.05285019,0.00025205,2]
[392694953,1761828443010,347.36523828,0.00025105,4]
[392694954,1761828451077,-389.59077173,0.00025205,2]
[392694966,1761828484351,161.54726533,0.00025105,2]
[392694981,1761828611313,1200.0,0.00025204,2]
[392695022,1761828632116,-830.25901035,0.00025205,2]
[392695024,1761828632125,-2511.41925378,0.00025205,2]
[392695026,1761828632135,-295.82614086,0.00025205,2]
[392695028,1761828632144,-150.0,0.00025205,2]
[392695030,1761828632153,-199.68079118,0.000253,2]
[392695032,1761828632163,-151.0,0.00025693,2]
[392695034,1761828632177,-151.0,0.00025693,2]
[392695035,1761828632187,-151.0,0.00025693,2]
[392695037,1761828632196,-151.0,0.00025693,2]
[392695040,1761828632205,-151.0,0.00025693,2]
[392695041,1761828632215,-151.0,0.00025693,2]
[392695044,1761828632226,-151.0,0.00025693,2]
[392695046,1761828632236,-151.0,0.00025693,2]
[392695048,1761828632245,-151.0,0.00025693,2]
[392695049,1761828632255,-151.0,0.00025693,2]
[392695052,1761828632265,-151.0,0.00025693,2]
[392695054,1761828632275,-151.0,0.00025693,2]
[392695056,1761828632284,-151.0,0.00025693,2]
[392695057,1761828632294,-151.0,0.00025693,2]
[392695060,1761828632305,-151.0,0.00025693,2]
[392695061,1761828632315,-151.0,0.00025693,2]
[392695064,1761828632325,-151.0,0.00025693,2]
[392695065,1761828632334,-151.0,0.00025693,2]
[392695067,1761828632344,-151.0,0.00025693,2]
[392695070,1761828632354,-151.0,0.00025693,2]
[392695071,1761828632363,-414.0,0.00025707,2]
[392695073,1761828632373,-3433.81480384,0.00025708,2]
[392695088,1761828632509,-4895.3167846,0.00025708,2]
[392695090,1761828632520,-455.03731312,0.00025708,2]
[392695140,1761828637952,-483.56927191,0.00025708,2]
[392695142,1761828637965,-267.04094498,0.00025708,2]
[392695144,1761828637974,-155.0912376,0.00025708,20]
[392695146,1761828637986,-144.9087624,0.00025708,20]
[392695148,1761828637996,-300.0,0.00025708,20]
[392695150,1761828638007,-300.0,0.00025708,20]
[392695152,1761828638017,-7.82749466,0.00025708,20]
[392695156,1761828638115,-292.17250534,0.00025708,20]
[392695157,1761828638125,-300.0,0.00025708,20]
[392695158,1761828638134,-300.0,0.00025708,20]
[392695159,1761828638143,-93.65133762,0.00025708,20]
[392695160,1761828638175,-97.06668788,0.00025708,20]
[392695161,1761828638187,-109.2819745,0.00025708,20]
[392695162,1761828638196,-300.0,0.00025708,20]
[392695163,1761828638205,-300.0,0.00025708,20]
[392695164,1761828638215,-300.0,0.00025708,20]
[392695165,1761828638224,-300.0,0.00025708,20]
[392695166,1761828638233,-300.0,0.00025708,20]
[392695167,1761828638242,-300.0,0.00025708,20]
[392695168,1761828638253,-300.0,0.00025708,20]
[392695169,1761828638262,-300.0,0.00025708,20]
[392695170,1761828638272,-600.0,0.00026221,30]
[392695171,1761828638281,-202.99981956,0.00027172,2]
[392695172,1761828638291,-177.0,0.00027205,2]
[392695173,1761828638302,-1146.0,0.00027422,2]
[392695174,1761828638312,-170.102837,0.00028219,2]
[392695175,1761828638321,-231.99979379,0.00028372,2]
[392695176,1761828638331,-720.0,0.00028843,30]
[392695177,1761828638341,-398.63437349,0.00029033,2]
[392695178,1761828638350,-157.8190432,0.00029092,21]
[392695179,1761828638359,-204.0,0.00029205,2]
[392695180,1761828638368,-362.49967779,0.0002938,2]
[392695181,1761828638377,-231.0,0.00031205,2]
[392695182,1761828638386,-1000.0,0.00031594,30]
[392695183,1761828638395,-864.0,0.00031728,30]
[392695184,1761828638408,-398.63437349,0.00031851,3]
[392695185,1761828638417,-450.8911106,0.00031976,2]
[392695186,1761828638428,-150.25,0.00032721,15]
[392695187,1761828638438,-150.25,0.00032821,15]
[392695188,1761828638448,-375.22982955,0.000332,117]
[392695189,1761828638457,-375.22982954,0.000332,117]
[392695190,1761828638466,-258.0,0.00033205,120]
[392695191,1761828638478,-620.696282,0.00033551,2]
[392695192,1761828638487,-160.91701486,0.00034489,7]
[392695193,1761828638498,-398.63437349,0.00034668,4]
[392695194,1761828638507,-1000.0,0.000349,30]
[392695195,1761828638516,-285.0,0.00035205,120]
[392695196,1761828638526,-3509.37,0.00035475,30]
[392695197,1761828638535,-200.0,0.00035475,30]
[392695198,1761828638544,-500.0,0.00035478,2]
[392695199,1761828638553,-500.0,0.00035478,7]
[392695200,1761828638562,-500.0,0.00036388,5]
[392695201,1761828638571,-1000.0,0.00036935,5]
[392695202,1761828638580,-312.0,0.00037205,120]
[392695203,1761828638590,-500.0,0.00037484,15]
[392695204,1761828638599,-500.0,0.00037484,15]
[392695205,1761828638608,-500.0,0.00037484,15]
[392695206,1761828638617,-500.0,0.00037484,15]
[392695207,1761828638627,-445.51564443,0.00037484,15]
[392695208,1761828638636,-398.63437349,0.00037485,5]
[392695209,1761828638645,-161.54726533,0.00037777,2]
[392695210,1761828638655,-1293.82176462,0.000378,2]
[392695211,1761828638664,-203.68076416,0.0003789,3]
[392695212,1761828638674,-179.93076625,0.00037899,15]
[392695213,1761828638683,-25396.42868886,0.000379,2]
[392695214,1761828638694,-7434.88908677,0.000379,2]
[392695215,1761828638705,-759.44493953,0.000379,2]
[392695242,1761828643242,-500.0,0.00037484,15]
[392695243,1761828643251,-443.89970753,0.00037484,15]
[392695244,1761828643357,-56.10029247,0.00037484,15]
[392695245,1761828643366,-640.37903061,0.00037484,15]
[392695246,1761828643376,-36903.52067592,0.000379,2]
[392695283,1761828646242,-2040.55059681,0.00035475,120]
[392695284,1761828646252,-509.83,0.0003789,3]
[392695285,1761828646262,-500.0,0.00037899,15]
[392695286,1761828646271,-183.02451262,0.00037899,15]
[392695287,1761828646280,-614505.71660892,0.000379,2]
[392695288,1761828646290,-742.89,0.000379,14]
[392695289,1761828646299,-1243.39,0.000379,14]
[392695290,1761828646308,-500.0,0.000379,30]
[392695291,1761828646317,-1000.0,0.0003839,90]
[392695292,1761828646326,-244.0,0.0003839,90]
[392695293,1761828646335,-150.0,0.00038547,2]
[392695294,1761828646344,-339.0,0.00039205,120]
[392695295,1761828646353,-375.22982954,0.00039753,120]
[392695296,1761828646362,-159.61,0.00040003,14]
[392695297,1761828646372,-399.03300787,0.00040303,7]
[392695298,1761828646381,-302.49,0.00040796,14]
[392695299,1761828646391,-302.49,0.00040796,14]
[392695300,1761828646402,-240.24270782,0.00041096,2]
[392695301,1761828646413,-366.0,0.00041205,120]
[392695302,1761828646422,-150.0,0.00041422,30]
[392695303,1761828646433,-1174.32,0.00041752,14]
[392695304,1761828646443,-656.8,0.00041752,14]
[392695305,1761828646452,-150.0,0.00042052,2]
[392695306,1761828646462,-1000.0,0.00042229,90]
[392695307,1761828646472,-492.0,0.00042229,90]
[392695308,1761828646481,-1293.82176462,0.00042613,2]
[392695309,1761828646491,-225.24,0.00042905,14]
[392695310,1761828646500,-225.24,0.00042905,14]
[392695311,1761828646509,-393.0,0.00043205,120]
[392695312,1761828646519,-170.102837,0.00043757,2]
[392695313,1761828646528,-193057.8,0.00044844,14]
[392695314,1761828646537,-132189.96,0.00044844,14]
[392695315,1761828646547,-152693.89829625,0.00045,10]
[392695316,1761828646556,-3604.22,0.00045144,42]
[392695317,1761828646566,-420.0,0.00045205,120]
[392695318,1761828646575,-150.0,0.0004528,30]
[392695319,1761828646584,-188.23,0.00045344,120]
[392695320,1761828646594,-219.60427709,0.00045344,120]
[392695321,1761828646604,-226.15,0.00045344,120]
[392695322,1761828646613,-175.89794649,0.00045344,120]
[392695323,1761828646622,-175.89794649,0.00045344,120]
[392695324,1761828646631,-500.0,0.000454,120]
[392695325,1761828646640,-500.0,0.000454,30]
[392695326,1761828646649,-1421.77436813,0.000454,120]
[392695327,1761828646659,-206957.65300515,0.00045444,30]
[392695328,1761828726865,213.785345,0.00013699,2]
[392695329,1761828727110,213.785345,0.00020187,2]
[392695408,1761829630094,-150.0,0.00025547,2]
[392695409,1761829630115,-213.785345,0.00026676,2]
[392695410,1761829630135,-205.9856055,0.00027447,2]
[392695411,1761829630156,-177.0,0.00027547,2]
[392695412,1761829630175,-1492.4864992,0.00028103,2]
[392695413,1761829630194,-205.98560548,0.00028727,2]
[392695414,1761829630215,-204.0,0.00029547,2]
[392695415,1761829630233,-205.98560548,0.00030007,2]
[392695416,1761829630252,-1200.0,0.00030099,2]
[392695417,1761829630271,-400.0,0.00030099,2]
[392695418,1761829630290,-3000.0,0.000301,2]
[392695419,1761829630309,-300.0,0.00030104,2]
[392695420,1761829630327,-300.0,0.00030105,2]
[392695421,1761829630345,-300.0,0.00030105,2]
[392695422,1761829630363,-300.0,0.00030105,2]
[392695423,1761829630384,-598.0,0.00030106,2]
[392695424,1761829630402,-1230.98793609,0.00030106,2]
[392695425,1761829633116,-163.98093669,0.00030106,2]
[392695459,1761829832239,-150.52850186,0.00025276,2]